fUSD/lending_fUSD_20250512
["ID","MTS","AMOUNT","RATE_DAILY","PERIOD"]
[360813562,1747036248475,-1738.07,0.00013698,2]
[360813564,1747036248484,-444.56,0.00013698,2]
[360813566,1747036248494,-430.12547238,0.00013698,2]
[360813568,1747036248504,-400.0,0.00013698,2]
[360813570,1747036248514,-941.9,0.00013698,2]
[360813572,1747036248523,-444.56,0.00013698,2]
[360813574,1747036248532,-1738.07,0.00013698,2]
[360813576,1747036248542,-400.0,0.00013698,2]
[360813578,1747036248551,-941.9,0.00013698,2]
[360813580,1747036248561,-444.56,0.00013698,2]
[360813582,1747036248570,-1738.07,0.00013698,2]
[360813584,1747036248580,-400.0,0.00013698,2]
[360813586,1747036248590,-941.9,0.00013698,2]
[360813588,1747036248598,-461.29285508,0.00013698,2]
[360813590,1747036248608,-444.56,0.00013698,2]
[360813592,1747036248617,-177.8895873,0.00013698,2]
[360813604,1747036248727,-222.1104127,0.00013698,2]
[360813606,1747036248736,-941.9,0.00013698,2]
[360813608,1747036248745,-444.56,0.00013698,2]
[360813610,1747036248755,-400.0,0.00013698,2]
[360813612,1747036248764,-941.9,0.00013698,2]
[360813614,1747036248774,-1738.07,0.00013698,2]
[360813616,1747036248784,-444.56,0.00013698,2]
[360813618,1747036248793,-941.9,0.00013698,2]
[360813620,1747036248803,-1738.07,0.00013698,2]
[360813622,1747036248813,-444.56,0.00013698,2]
[360813624,1747036248823,-1738.07,0.00013698,2]
[360813626,1747036248832,-941.9,0.00013698,2]
[360813628,1747036248842,-444.56,0.00013698,2]
[360813630,1747036248852,-400.0,0.00013698,2]
[360813632,1747036248861,-1738.07,0.00013698,2]
[360813633,1747036248871,-444.56,0.00013698,2]
[360813636,1747036248882,-941.9,0.00013698,2]
[360813637,1747036248891,-1738.07,0.00013698,2]
[360813639,1747036248903,-1738.07,0.00013698,2]
[360813641,1747036248914,-444.56,0.00013698,2]
[360813644,1747036248925,-941.9,0.00013698,2]
[360813646,1747036248938,-1738.07,0.00013698,2]
[360813648,1747036248948,-941.9,0.00013698,2]
[360813649,1747036248958,-444.7679411,0.00013698,2]
[360813651,1747036248969,-400.0,0.00013698,2]
[360813653,1747036248979,-1738.07,0.00013698,2]
[360813655,1747036248989,-941.9,0.00013698,2]
[360813657,1747036248999,-1738.07,0.00013698,2]
[360813659,1747036249011,-941.9,0.00013698,2]
[360813661,1747036249021,-1738.07,0.00013698,2]
[360813664,1747036249031,-941.9,0.00013698,2]
[360813666,1747036249042,-400.0,0.00013698,2]
[360813668,1747036249051,-1738.07,0.00013698,2]
[360813670,1747036249061,-941.9,0.00013698,2]
[360813672,1747036249071,-1738.07,0.00013698,2]
[360813674,1747036249081,-941.9,0.00013698,2]
[360813676,1747036249091,-1738.07,0.00013698,2]
[360813678,1747036249101,-942.06011131,0.00013698,2]
[360813680,1747036249112,-400.0,0.00013698,2]
[360813682,1747036249122,-1738.07,0.00013698,2]
[360813684,1747036249135,-400.0,0.00013698,2]
[360813686,1747036249146,-1738.07,0.00013698,2]
[360813688,1747036249156,-400.0,0.00013698,2]
[360813690,1747036249166,-1738.07,0.00013698,2]
[360813692,1747036249178,-400.0,0.00013698,2]
[360813694,1747036249189,-1738.26776774,0.00013698,2]
[360813696,1747036249199,-221.76,0.00013698,2]
[360813697,1747036249210,-400.0,0.00013698,2]
[360813699,1747036249219,-400.0,0.00013698,2]
[360813701,1747036249229,-400.0,0.00013698,2]
[360813703,1747036249239,-400.0,0.00013698,2]
[360813705,1747036249249,-187.171593,0.00013698,2]
[360813707,1747036249259,-462.18189756,0.00013698,2]
[360813709,1747036249268,-400.0,0.00013698,2]
[360813711,1747036249278,-2633.69,0.00013698,2]
[360813713,1747036249287,-400.0,0.00013698,2]
[360813715,1747036249297,-2633.69,0.00013698,2]
[360813717,1747036249306,-2633.69,0.00013698,2]
[360813719,1747036249316,-2633.69,0.00013698,2]
[360813720,1747036249326,-2633.69,0.00013698,2]
[360813721,1747036249336,-2633.69,0.00013698,2]
[360813722,1747036249345,-2633.69,0.00013698,2]
[360813723,1747036249355,-2633.69,0.00013698,2]
[360813724,1747036249365,-2633.69,0.00013698,2]
[360813725,1747036249375,-2633.69,0.00013698,2]
[360813726,1747036249385,-387.5,0.00013698,2]
[360813727,1747036249394,-2633.69,0.00013698,2]
[360813728,1747036249404,-400.0,0.00013698,2]
[360813729,1747036249413,-2633.69,0.00013698,2]
[360813731,1747036249423,-400.0,0.00013698,2]
[360813733,1747036249433,-2633.69,0.00013698,2]
[360813735,1747036249445,-400.0,0.00013698,2]
[360813738,1747036249455,-2633.69,0.00013698,2]
[360813739,1747036249464,-400.0,0.00013698,2]
[360813741,1747036249473,-2633.69,0.00013698,2]
[360813743,1747036249483,-400.0,0.00013698,2]
[360813745,1747036249492,-2633.69,0.00013698,2]
[360813747,1747036249501,-400.0,0.00013698,2]
[360813749,1747036249510,-2633.69,0.00013698,2]
[360813751,1747036249519,-2633.69,0.00013698,2]
[360813753,1747036249529,-400.0,0.00013698,2]
[360813755,1747036249539,-400.0,0.00013698,2]
[360813757,1747036249549,-2633.69,0.00013698,2]
[360813759,1747036249558,-2633.69,0.00013698,2]
[360813761,1747036249568,-2633.69,0.00013698,2]
[360813763,1747036249577,-404.23829864,0.00013698,2]
[360813765,1747036249586,-2633.69,0.00013698,2]
[360813767,1747036249595,-400.0,0.00013698,2]
[360813769,1747036249604,-400.0,0.00013698,2]
[360813771,1747036249614,-2633.69,0.00013698,2]
[360813773,1747036249624,-400.0,0.00013698,2]
[360813775,1747036249633,-400.0,0.00013698,2]
[360813777,1747036249643,-2633.80944302,0.00013698,2]
[360813779,1747036249653,-329.69541411,0.00013698,2]
[360813850,1747036250346,-144.15371417,0.00013698,2]
[360813852,1747036250356,-400.0,0.00013698,2]
[360813854,1747036250366,-400.0,0.00013698,2]
[360813856,1747036250375,-245.57,0.00013698,2]
[360813858,1747036250385,-400.0,0.00013698,2]
[360813860,1747036250395,-400.0,0.00013698,2]
[360813862,1747036250404,-400.0,0.00013698,2]
[360813864,1747036250414,-400.0,0.00013698,2]
[360813866,1747036250423,-400.0,0.00013698,2]
[360813869,1747036250433,-411.44511955,0.00013698,2]
[360813871,1747036250444,-400.0,0.00013698,2]
[360813873,1747036250454,-400.0,0.00013698,2]
[360813875,1747036250464,-385.99682016,0.00013698,2]
[360813877,1747036250474,-400.0,0.00013698,2]
[360813879,1747036250483,-6161.58736,0.00013698,2]
[360813881,1747036250493,-6161.58736,0.00013698,2]
[360813883,1747036250502,-6161.58736,0.00013698,2]
[360813885,1747036250511,-6161.58736,0.00013698,2]
[360813886,1747036250521,-477.32761948,0.00013698,2]
[360813888,1747036250530,-1806.95,0.00013698,2]
[360813890,1747036250539,-6161.58736,0.00013698,2]
[360813892,1747036250549,-400.0,0.00013698,2]
[360813894,1747036250558,-1806.95,0.00013698,2]
[360813897,1747036250568,-6161.58736,0.00013698,2]
[360813899,1747036250577,-500.0,0.00013698,2]
[360813901,1747036250587,-1806.95,0.00013698,2]
[360813902,1747036250596,-400.0,0.00013698,2]
[360813904,1747036250606,-6161.587367,0.00013698,2]
[360813906,1747036250615,-1806.95,0.00013698,2]
[360813909,1747036250624,-537.62631675,0.00013698,2]
[360813911,1747036250634,-1806.95,0.00013698,2]
[360813912,1747036250643,-450.0,0.00013698,2]
[360813914,1747036250653,-1806.95,0.00013698,2]
[360813916,1747036250662,-1806.95,0.00013698,2]
[360813918,1747036250672,-151.0,0.00013698,2]
[360813920,1747036250681,-151.0,0.00013698,2]
[360813922,1747036250693,-1806.95,0.00013698,2]
[360813924,1747036250702,-400.0,0.00013698,2]
[360813927,1747036250711,-1806.95,0.00013698,2]
[360813929,1747036250721,-400.0,0.00013698,2]
[360813931,1747036250730,-1806.95,0.00013698,2]
[360813933,1747036250739,-1806.95,0.00013698,2]
[360813935,1747036250749,-1806.95,0.00013698,2]
[360813936,1747036250758,-1806.95,0.00013698,2]
[360813938,1747036250767,-400.0,0.00013698,2]
[360813940,1747036250777,-1806.95,0.00013698,2]
[360813942,1747036250786,-1806.95,0.00013698,2]
[360813944,1747036250795,-1806.95,0.00013698,2]
[360813946,1747036250804,-1806.95,0.00013698,2]
[360813948,1747036250813,-1806.95,0.00013698,2]
[360813950,1747036250822,-1806.95,0.00013698,2]
[360813952,1747036250832,-1806.95,0.00013698,2]
[360813954,1747036250841,-674.85666224,0.00013698,2]
[360813979,1747036251148,-1132.09333776,0.00013698,2]
[360813981,1747036251158,-1806.95,0.00013698,2]
[360813983,1747036251168,-1806.95,0.00013698,2]
[360813985,1747036251177,-400.0,0.00013698,2]
[360813986,1747036251186,-1806.95091465,0.00013698,2]
[360813989,1747036251197,-400.0,0.00013698,2]
[360813991,1747036251208,-400.0,0.00013698,2]
[360813992,1747036251217,-400.0,0.00013698,2]
[360813994,1747036251226,-341.94,0.00013698,2]
[360813997,1747036251237,-400.0,0.00013698,2]
[360813998,1747036251247,-400.0,0.00013698,2]
[360814000,1747036251256,-400.0,0.00013698,2]
[360814002,1747036251265,-309.28638481,0.00013698,2]
[360814004,1747036251275,-400.0,0.00013698,2]
[360814006,1747036251284,-204.17099509,0.00013698,2]
[360814008,1747036251293,-3630.8,0.00013698,2]
[360814010,1747036251303,-3630.8,0.00013698,2]
[360814012,1747036251312,-3630.8,0.00013698,2]
[360814014,1747036251322,-3630.8,0.00013698,2]
[360814016,1747036251332,-3630.8,0.00013698,2]
[360814018,1747036251342,-3630.8,0.00013698,2]
[360814020,1747036251351,-3630.8,0.00013698,2]
[360814022,1747036251360,-3630.8,0.00013698,2]
[360814025,1747036251371,-3630.8,0.00013698,2]
[360814027,1747036251381,-513.1739734,0.00013698,2]
[360814029,1747036251391,-3630.8,0.00013698,2]
[360814031,1747036251400,-3630.8,0.00013698,2]
[360814033,1747036251411,-400.0,0.00013698,2]
[360814035,1747036251423,-3630.8,0.00013698,2]
[360814037,1747036251432,-510.4,0.00013698,2]
[360814039,1747036251444,-400.0,0.00013698,2]
[360814041,1747036251453,-3630.8,0.00013698,2]
[360814043,1747036251463,-510.4,0.00013698,2]
[360814045,1747036251472,-400.0,0.00013698,2]
[360814046,1747036251481,-3630.8,0.00013698,2]
[360814048,1747036251491,-510.4,0.00013698,2]
[360814050,1747036251501,-450.0,0.00013698,2]
[360814053,1747036251511,-3630.8,0.00013698,2]
[360814055,1747036251520,-510.4,0.00013698,2]
[360814056,1747036251530,-3630.8,0.00013698,2]
[360814059,1747036251540,-3630.8,0.00013698,2]
[360814060,1747036251549,-510.4,0.00013698,2]
[360814062,1747036251559,-3630.8,0.00013698,2]
[360814065,1747036251569,-510.4,0.00013698,2]
[360814067,1747036251579,-3630.8,0.00013698,2]
[360814069,1747036251589,-510.4,0.00013698,2]
[360814070,1747036251598,-3630.8,0.00013698,2]
[360814072,1747036251608,-510.4,0.00013698,2]
[360814075,1747036251617,-3630.8,0.00013698,2]
[360814076,1747036251627,-510.4,0.00013698,2]
[360814079,1747036251637,-3630.8,0.00013698,2]
[360814080,1747036251647,-2283.2080189,0.00013698,2]
[360814084,1747036251673,-1347.5919811,0.00013698,2]
[360814086,1747036251683,-510.4,0.00013698,2]
[360814088,1747036251695,-402.77385162,0.00013698,2]
[360814091,1747036251708,-436.23237309,0.00013698,2]
[360814093,1747036251719,-396.359999,0.00013698,2]
[360814095,1747036251730,-511.89601784,0.00013698,2]
[360814097,1747036251742,-1883.72237463,0.00013698,2]
[360814099,1747036251752,-510.4,0.00013698,2]
[360814101,1747036251762,-400.0,0.00013698,2]
[360814103,1747036251772,-510.4,0.00013698,2]
[360814105,1747036251781,-400.0,0.00013698,2]
[360814107,1747036251791,-510.4,0.00013698,2]
[360814109,1747036251800,-450.0,0.00013698,2]
[360814111,1747036251810,-510.4,0.00013698,2]
[360814113,1747036251819,-510.4,0.00013698,2]
[360814115,1747036251829,-510.4,0.00013698,2]
[360814117,1747036251839,-164.699775,0.00013698,2]
[360814119,1747036251848,-400.0,0.00013698,2]
[360814121,1747036251858,-150.0,0.00013698,2]
[360814123,1747036251868,-510.4,0.00013698,2]
[360814125,1747036251877,-510.4,0.00013698,2]
[360814127,1747036251887,-510.4,0.00013698,2]
[360814129,1747036251896,-510.4,0.00013698,2]
[360814131,1747036251905,-510.4,0.00013698,2]
[360814133,1747036251914,-510.4,0.00013698,2]
[360814135,1747036251924,-1499.22,0.00013698,2]
[360814137,1747036251934,-510.4,0.00013698,2]
[360814139,1747036251946,-1499.22,0.00013698,2]
[360814141,1747036251955,-138.93616555,0.00013698,2]
[360814213,1747036252743,-410.13686668,0.00013598,2]
[360814215,1747036252753,-206.47698722,0.00013598,2]
[360814217,1747036252763,-371.59387018,0.00013698,2]
[360814219,1747036252773,-1499.22,0.00013698,2]
[360814221,1747036252783,-100.8911652,0.00013698,2]
[360814223,1747036252794,-53.40625726,0.00013698,2]
[360814225,1747036252802,-1499.22,0.00013698,2]
[360814227,1747036252812,-1499.22,0.00013698,2]
[360814229,1747036252821,-1499.22,0.00013698,2]
[360814230,1747036252828,-439.03374474,0.00013698,2]
[360814233,1747036252841,-1060.18625526,0.00013698,2]
[360814235,1747036252851,-1499.22,0.00013698,2]
[360814237,1747036252861,-97.89374474,0.00013698,2]
[360814239,1747036252872,-736.289638,0.00013698,2]
[360814242,1747036252891,-2722.85,0.00013498,2]
[360814244,1747036252905,-780.14678956,0.00013498,2]
[360814246,1747036252918,-3464.73850624,0.00013498,2]
[360814248,1747036252927,-665.03661726,0.00013698,2]
[360814251,1747036252936,-1499.22,0.00013698,2]
[360814253,1747036252948,-1499.22,0.00013698,2]
[360814254,1747036252958,-1499.22,0.00013698,2]
[360814256,1747036252967,-1499.22,0.00013698,2]
[360814258,1747036252977,-1499.22,0.00013698,2]
[360814260,1747036252987,-1499.22,0.00013698,2]
[360814262,1747036252997,-400.0,0.00013698,2]
[360814264,1747036253006,-1499.22,0.00013698,2]
[360814266,1747036253016,-1499.22,0.00013698,2]
[360814268,1747036253026,-1499.22,0.00013698,2]
[360814270,1747036253036,-1499.22,0.00013698,2]
[360814272,1747036253046,-1499.22,0.00013698,2]
[360814274,1747036253056,-400.0,0.00013698,2]
[360814276,1747036253064,-1499.22,0.00013698,2]
[360814278,1747036253073,-99.0552765,0.00013698,2]
[360814284,1747036253126,-1400.1647235,0.00013698,2]
[360814287,1747036253138,-400.0,0.00013698,2]
[360814288,1747036253147,-412.75439396,0.00013698,2]
[360814290,1747036253158,-1499.22,0.00013698,2]
[360814292,1747036253169,-1499.35162156,0.00013698,2]
[360814294,1747036253179,-6.63826098,0.00013698,2]
[360814297,1747036253193,-393.36173902,0.00013698,2]
[360814299,1747036253203,-26.59375233,0.00013698,2]
[360814303,1747036253231,-373.40624767,0.00013698,2]
[360814304,1747036253241,-400.0,0.00013698,2]
[360814307,1747036253251,-400.0,0.00013698,2]
[360814308,1747036253261,-314.74375233,0.00013698,2]
[360814311,1747036253273,-85.25624767,0.00013698,2]
[360814313,1747036253283,-400.0,0.00013698,2]
[360814315,1747036253293,-400.0,0.00013698,2]
[360814317,1747036253303,-416.40984844,0.00013698,2]
[360814319,1747036253312,-400.0,0.00013698,2]
[360814321,1747036253322,-400.0,0.00013698,2]
[360814323,1747036253330,-400.0,0.00013698,2]
[360814324,1747036253338,-400.0,0.00013698,2]
[360814327,1747036253348,-400.0,0.00013698,2]
[360814329,1747036253358,-400.0,0.00013698,2]
[360814331,1747036253368,-400.0,0.00013698,2]
[360814332,1747036253377,-215.43390389,0.00013698,2]
[360814335,1747036253392,-184.56609611,0.00013698,2]
[360814337,1747036253402,-199.31002154,0.00013698,2]
[360814339,1747036253413,-250.0,0.00013698,2]
[360814341,1747036253423,-218.61915327,0.00013698,2]
[360815945,1747036338858,447.02823324,0.00028,120]
[360815947,1747036670949,869.09,0.00010755,2]
[360815948,1747036707640,172.1,0.0001012,2]
[360815954,1747036903725,-179.32101991,0.00012494,2]
[360815955,1747036909982,-152.87535948,0.00012494,2]
[360815956,1747036922610,-162.01,0.00012447,2]
[360815957,1747036922635,-7.59,0.00012453,2]
[360815958,1747036938869,-154.42,0.00012453,2]
[360815959,1747036938893,-45.58,0.00012459,2]
[360815960,1747036953378,-116.43,0.00012459,2]
[360815961,1747036953405,-42.95,0.00012465,2]
[360815962,1747036967673,-119.06,0.00012465,2]
[360815963,1747036967698,-61.23581256,0.00012472,2]
[360815964,1747036983152,-100.77418744,0.00012472,2]
[360815965,1747036983181,-140.42023772,0.00012478,2]
[360815966,1747036997952,-21.58976228,0.00012478,2]
[360815967,1747036997976,-246.0213874,0.00012482,2]
[360815969,1747037012631,-184.33661654,0.00012256,2]
[360815970,1747037027677,-257.41866794,0.00012256,2]
[360815971,1747037044403,-164.53570043,0.00012256,2]
[360815972,1747037057600,-363.00050619,0.00012256,2]
[360815973,1747037073990,-200.0,0.00012246,2]
[360815974,1747037074036,-152.56143732,0.00012256,2]
[360815975,1747037076402,-152.56143732,0.00012256,2]
[360815976,1747037087719,-283.99014983,0.00012255,2]
[360815978,1747037103482,-216.00985017,0.00012254,2]
[360815979,1747037117653,-83.99014983,0.00012254,2]
[360815980,1747037117677,-102.21778446,0.00012254,2]
[360815981,1747037133164,-280.80880739,0.00012254,2]
[360815982,1747037147673,-208.67410497,0.00012254,2]
[360815983,1747037162610,-301.53,0.00012254,2]
[360815984,1747037177707,-214.13273447,0.00012254,2]
[360815985,1747037192569,-92.63656871,0.00012254,2]
[360815986,1747037192594,-127.55869612,0.00012254,2]
[360815987,1747037208184,-300.0,0.00012192,2]
[360815988,1747037222611,-134.327999,0.00012192,2]
[360815989,1747037222636,-65.672001,0.00012253,2]
[360815990,1747037238288,-219.21808652,0.00012253,2]
[360815991,1747037253281,-215.10991248,0.00012253,2]
[360815992,1747037253305,-121.86219843,0.00012253,2]
[360815993,1747037268377,-230.26909439,0.00012253,2]
[360815994,1747037283111,-210.21758123,0.00012252,2]
[360815995,1747037292347,150.0,0.00013699,7]
[360815996,1747037297686,-89.78241877,0.00012252,2]
[360815997,1747037297709,-76.26758123,0.00012253,2]
[360815998,1747037313192,-71.60112595,0.00012253,2]
[360815999,1747037313216,-247.89398328,0.00012253,2]
[360816000,1747037314736,-132.29559965,0.00012253,2]
[360816001,1747037314764,-115.59838363,0.00012253,2]
[360816002,1747037327685,-175.00990309,0.00012253,2]
[360816003,1747037343343,-171.84559169,0.00012252,2]
[360816004,1747037343369,-33.49986561,0.00012252,2]
[360816005,1747037351143,-130.31134902,0.00012252,2]
[360816006,1747037351169,-221.00245973,0.00012252,2]
[360816007,1747037351195,-500.0,0.00012252,2]
[360816008,1747037351289,-500.0,0.00012252,2]
[360816009,1747037351317,-500.0,0.00012252,2]
[360816010,1747037351415,-500.0,0.00012252,2]
[360816011,1747037351707,-500.0,0.00012252,2]
[360816012,1747037351729,-178.32235304,0.00012252,2]
[360816013,1747037351822,-500.0,0.00012252,2]
[360816014,1747037351920,-500.0,0.00012252,2]
[360816015,1747037352010,-500.0,0.00012252,2]
[360816016,1747037352096,-361.00709221,0.00012252,2]
[360816017,1747037357641,-138.99290779,0.00012252,2]
[360816018,1747037357719,-156.01502642,0.00012252,2]
[360816019,1747037373793,-170.06,0.00012218,2]
[360816020,1747037373823,-34.93206579,0.00012254,2]
[360816021,1747037388189,-137.50923809,0.00012254,2]
[360816022,1747037388213,-124.16151895,0.00012256,2]
[360816025,1747037403149,-223.36481263,0.00012256,2]
[360816027,1747037418209,-297.10424105,0.00012256,2]
[360816052,1747037431716,-102.79506163,0.00012256,2]
[360816055,1747037431726,-250.0,0.00012263,2]
[360816058,1747037431735,-877.57639006,0.00012271,2]
[360816062,1747037431746,-122.42360994,0.00012271,2]
[360816065,1747037431756,-153.2267317,0.00012275,2]
[360816068,1747037431767,-96.7732683,0.00012275,2]
[360816070,1747037431777,-509.65543323,0.00012317,2]
[360816076,1747037431834,-157.50456677,0.00012317,2]
[360816077,1747037431843,-162.01,0.00012484,2]
[360816078,1747037431852,-162.01,0.0001249,2]
[360816079,1747037431862,-153.04362061,0.00012494,2]
[360816080,1747037431878,-162.01,0.00012497,2]
[360816081,1747037431887,-162.01,0.00012503,2]
[360816082,1747037431896,-162.01,0.00012509,2]
[360816083,1747037431906,-803.43,0.00012613,2]
[360816084,1747037431915,-535.75,0.00012636,2]
[360816085,1747037431925,-433.11,0.00012647,2]
[360816086,1747037431934,-236.11181262,0.00012657,2]
[360816087,1747037431984,-963.88818738,0.00012657,2]
[360816088,1747037431994,-300.0,0.00012657,2]
[360816089,1747037432003,-300.0,0.00012657,2]
[360816090,1747037432012,-286.38,0.00012658,2]
[360816091,1747037432024,-809.77,0.00012658,2]
[360816092,1747037432033,-6065.75,0.00012658,2]
[360816093,1747037432042,-150.0,0.00012681,2]
[360816094,1747037432051,-4065.0645436,0.00012682,2]
[360816156,1747037438236,-293.71004951,0.00012682,2]
[360816157,1747037438248,-2093.79435257,0.00012682,2]
[360816158,1747037438377,-1720.32690124,0.00012682,2]
[360816159,1747037438387,-800.1462528,0.00012682,2]
[360816160,1747037438505,-14926.95790028,0.00012682,2]
[360816161,1747037438516,-389.93793726,0.000127,2]
[360816162,1747037438526,-167.11,0.00012906,2]
[360816163,1747037438536,-816.17127607,0.00013,2]
[360816164,1747037438547,-171.3646112,0.00013007,2]
[360816165,1747037438557,-668.65185757,0.00013007,2]
[360816166,1747037438566,-207.4,0.00013007,2]
[360816167,1747037438576,-869.09,0.00013019,2]
[360816168,1747037438588,-1549.0,0.00013053,2]
[360816169,1747037438597,-7298.90481188,0.00013398,2]
[360816170,1747037438606,-85.41109285,0.00013398,2]
[360816171,1747037438620,-177.46800715,0.00013398,2]
[360816173,1747037438630,-422.26863422,0.000134,2]
[360816174,1747037438641,-577.73136578,0.000134,2]
[360816175,1747037438650,-7298.90481186,0.0001342,2]
[360816176,1747037438660,-17943.9181,0.0001342,2]
[360816177,1747037438670,-170.06,0.0001344,2]
[360816178,1747037438679,-7298.90481186,0.00013442,2]
[360816179,1747037438689,-7298.90481186,0.00013465,2]
[360816180,1747037438698,-863.7023515,0.0001347,2]
[360816181,1747037438707,-250.0,0.00013479,2]
[360816182,1747037438717,-250.0,0.00013481,2]
[360816183,1747037438727,-7298.90481186,0.00013487,2]
[360816184,1747037438737,-20416.4103,0.00013498,2]
[360816185,1747037438746,-1000.0,0.00013498,2]
[360816186,1747037438756,-2500.0,0.00013498,2]
[360816187,1747037438765,-505.45842665,0.000135,2]
[360816188,1747037440002,-7.72492601,0.000135,2]
[360816189,1747037440014,-7298.90481186,0.00013509,2]
[360816190,1747037440023,-513.18335266,0.0001352,2]
[360816191,1747037440033,-1754.69866227,0.00013531,2]
[360816192,1747037440764,-2089.4,0.00013531,2]
[360816193,1747037440915,-2052.0,0.00013531,2]
[360816222,1747037442748,-1402.80614959,0.00013531,2]
[360816226,1747037442758,-242.32759386,0.00013539,2]
[360816250,1747037443056,-270.8557588,0.00013539,2]
[360816251,1747037443066,-7298.90481186,0.00013554,2]
[360816252,1747037443075,-693.3919763,0.00013555,2]
[360816253,1747037443084,-513.18335266,0.00013559,2]
[360816254,1747037443094,-1249.0,0.00013572,2]
[360816255,1747037443103,-409.61984583,0.00013572,2]
[360816256,1747037443118,-508.38015417,0.00013572,2]
[360816257,1747037443133,-584.0,0.00013572,2]
[360816258,1747037443143,-2730.14680289,0.00013572,2]
[360816259,1747037443154,-3208.85319711,0.00013572,2]
[360816260,1747037443164,-588.82785016,0.00013572,2]
[360816261,1747037443176,-537.88414791,0.00013572,2]
[360816262,1747037443189,-19.28800193,0.00013572,2]
[360816263,1747037443198,-427.02282507,0.00013572,2]
[360816264,1747037443210,-2039.30178093,0.00013572,2]
[360816265,1747037443221,-4300.83041726,0.00013572,2]
[360816266,1747037443234,-50.84497674,0.00013572,2]
[360816267,1747037443243,-187.809,0.00013572,2]
[360816268,1747037443253,-226.44591221,0.00013572,2]
[360816269,1747037443300,-47.24208779,0.00013572,2]
[360816270,1747037443309,-238.13257672,0.00013572,2]
[360816271,1747037443386,-720.0899999,0.00013572,2]
[360816272,1747037443398,-635.716992,0.00013572,2]
[360816273,1747037443409,-655.65,0.00013572,2]
[360816275,1747037443421,-857.8,0.00013572,2]
[360816278,1747037445686,-921.61043138,0.00013572,2]
[360816279,1747037445696,-879.0,0.00013572,2]
[360816280,1747037445707,-184.16956862,0.00013572,2]
[360816281,1747037445719,-651.83043138,0.00013572,2]
[360816282,1747037445730,-1077.41566567,0.00013576,2]
[360816283,1747037445743,-924.87105184,0.00013576,2]
[360816284,1747037445808,-5210.0,0.00013576,2]
[360816285,1747037445819,-86.61809435,0.00013576,2]
[360816286,1747037445829,-513.18335266,0.00013578,2]
[360816287,1747037445838,-500.0,0.00013588,2]
[360816288,1747037445847,-2000.0,0.00013588,2]
[360816289,1747037445858,-500.0,0.00013588,2]
[360816290,1747037445868,-200.0,0.00013588,2]
[360816291,1747037445881,-167.38850893,0.00013598,2]
[360816292,1747037445891,-327.72135518,0.00013598,2]
[360816293,1747037445901,-317.6819412,0.00013598,2]
[360816294,1747037445910,-7298.90481186,0.00013598,2]
[360816295,1747037445920,-3227.44492974,0.00013598,2]
[360816296,1747037445929,-273.4245778,0.00013598,2]
[360816297,1747037445939,-199.0588861,0.00013598,2]
[360816298,1747037445948,-223.91614988,0.00013598,2]
[360816299,1747037445957,-513.18335266,0.00013598,2]
[360816300,1747037445967,-400.05077922,0.00013598,2]
[360816301,1747037445976,-165.8257278,0.00013598,2]
[360816302,1747037445986,-402.2755,0.00013598,2]
[360816303,1747037445996,-1776.8112,0.00013598,2]
[360816304,1747037446005,-19133.0547756,0.00013598,2]
[360816305,1747037446017,-710.81898075,0.00013598,2]
[360816306,1747037446029,-10276.97604365,0.00013598,2]
[360816307,1747037446039,-1000.0,0.000136,2]
[360816308,1747037446049,-150.0,0.00013622,2]
[360816309,1747037446059,-1980.7133073,0.00013629,2]
[360816310,1747037446068,-200.20262062,0.00013631,2]